bitfinex/quotes_BTCUSD_20240101
["timestamp","ask_amount","ask_price","bid_price","bid_amount"]
[1704090226949,0.01464325,42327.0,42326.0,0.72806396]
[1704090227821,0.01464325,42327.0,42326.0,0.70906396]
[1704090228016,0.01464325,42327.0,42326.0,0.7752335]
[1704090228223,0.01464325,42327.0,42326.0,1.45612997]
[1704090228426,0.00937251,42327.0,42326.0,1.43712997]
[1704090228643,0.00937251,42327.0,42326.0,1.45612997]
[1704090229743,0.00937251,42327.0,42326.0,1.54954997]
[1704090229957,0.00937251,42327.0,42326.0,1.45612997]
[1704090230814,0.00937251,42327.0,42326.0,1.36284312]
[1704090231662,0.00937251,42327.0,42326.0,1.45612997]
[1704090232275,0.00937251,42327.0,42326.0,1.36284312]
[1704090232507,0.00937251,42327.0,42326.0,1.45612997]
[1704090235690,0.00937251,42327.0,42326.0,1.51266898]
[1704090235899,0.00937251,42327.0,42326.0,1.45612997]
[1704090236110,0.00937251,42327.0,42326.0,1.55612997]
[1704090236327,0.00937251,42327.0,42326.0,1.61266898]
[1704090238306,0.00937251,42327.0,42326.0,1.64095738]
[1704090239453,0.00937251,42327.0,42326.0,1.8251563]
[1704090241331,0.00937251,42327.0,42326.0,1.85352076]
[1704090242182,0.00937251,42327.0,42326.0,1.94806676]
[1704090243230,0.00937251,42327.0,42326.0,1.97636473]
[1704090244177,0.00937251,42327.0,42326.0,1.83487489]
[1704090249801,0.10937251,42327.0,42326.0,1.75231489]
[1704090250232,0.10937251,42327.0,42326.0,1.89390915]
[1704090250447,0.10937251,42327.0,42326.0,1.75231489]
[1704090250681,0.10937251,42327.0,42326.0,1.71242804]
[1704090250880,0.10937251,42327.0,42326.0,1.80571489]
[1704090251088,0.10937251,42327.0,42326.0,1.71242804]
[1704090251945,0.10937251,42327.0,42326.0,1.80571489]
[1704090252153,0.10937251,42327.0,42326.0,1.71242804]
[1704090252363,0.10937251,42327.0,42326.0,1.80571489]
[1704090253606,0.00937251,42327.0,42326.0,1.80571489]
[1704090253822,0.00937251,42327.0,42326.0,1.83883489]
[1704090255061,0.1,42333.0,42326.0,2.1078627]
[1704090255062,0.00937251,42329.0,42326.0,2.1078627]
[1704090255285,0.00937251,42334.0,42328.0,0.23321711]
[1704090255497,0.30937251,42339.0,42333.0,0.35131711]
[1704090255724,0.30937251,42339.0,42336.0,0.16981811]
[1704090255725,0.00937251,42337.0,42336.0,0.16981811]
[1704090255935,0.00937251,42338.0,42337.0,0.3]
[1704090256154,0.00937251,42338.0,42337.0,1.49159935]
[1704090256377,0.00937251,42338.0,42337.0,1.57283935]
[1704090257278,0.2,42339.0,42337.0,1.67561935]
[1704090257484,0.20507251,42342.0,42338.0,1.19159935]
[1704090257720,0.20507251,42342.0,42340.0,0.14126994]
[1704090257941,0.20507251,42342.0,42341.0,0.81070288]
[1704090257942,0.00937251,42342.0,42341.0,0.81070288]
[1704090258171,0.00937251,42342.0,42341.0,1.03609282]
[1704090258411,0.10937251,42343.0,42341.0,0.98644288]
[1704090258622,0.00488582,42342.0,42341.0,0.91520961]
[1704090258837,0.10937251,42343.0,42341.0,0.61733711]
[1704090259052,0.10937251,42343.0,42342.0,0.38033014]
[1704090259262,0.10937251,42343.0,42342.0,0.99763686]
[1704090259474,0.10937251,42343.0,42342.0,0.88467137]
[1704090260349,0.10937251,42343.0,42342.0,0.70358672]
[1704090260558,0.10937251,42343.0,42342.0,0.61889711]
[1704090260773,0.10937251,42343.0,42342.0,0.70358672]
[1704090261417,0.10937251,42343.0,42342.0,0.67531941]
[1704090261635,0.10937251,42343.0,42342.0,0.71331941]
[1704090261847,0.10937251,42343.0,42342.0,0.63325711]
[1704090265934,0.20937251,42343.0,42342.0,0.63325711]
[1704090266156,0.20937251,42343.0,42342.0,0.57121711]
[1704090266996,0.20937251,42343.0,42342.0,0.27121711]
[1704090266997,0.30937251,42343.0,42342.0,0.27121711]
[1704090267898,0.20937251,42343.0,42342.0,0.27121711]
[1704090268982,0.21425873,42343.0,42342.0,0.27121711]
[1704090285418,0.21425873,42343.0,42342.0,0.32023711]
[1704090285631,0.21425873,42343.0,42342.0,0.32083711]
[1704090285823,0.21425873,42343.0,42342.0,0.27121711]
[1704090288435,0.11425873,42343.0,42342.0,0.27121711]
[1704090288842,0.11425873,42343.0,42342.0,0.32527711]
[1704090289916,0.21425873,42343.0,42342.0,0.27121711]
[1704090291039,0.21425873,42343.0,42342.0,0.32857711]
[1704090291040,0.11425873,42343.0,42342.0,0.32857711]
[1704090291433,0.21425873,42343.0,42342.0,0.32857711]
[1704090292058,0.21425873,42343.0,42342.0,0.27121711]
[1704090292467,0.20937251,42343.0,42342.0,0.27121711]
[1704090292675,0.21426586,42343.0,42342.0,0.27121711]
[1704090295585,0.21426586,42343.0,42342.0,0.32509711]
[1704090295996,0.21426586,42343.0,42342.0,0.27121711]
[1704090297385,0.21426586,42343.0,42342.0,0.38391941]
[1704090298050,0.11426586,42343.0,42342.0,0.38391941]
[1704090298259,0.21426586,42343.0,42342.0,0.38391941]
[1704090299297,0.21426586,42343.0,42342.0,0.59870119]
[1704090299993,0.21426586,42343.0,42342.0,0.35590672]
[1704090300209,0.20489335,42343.0,42342.0,0.35590672]
[1704090300415,0.21426586,42343.0,42342.0,0.62193346]
[1704090301425,0.20937251,42343.0,42342.0,0.62193346]
[1704090302058,0.20937251,42343.0,42342.0,0.57105346]
[1704090302276,0.21408859,42343.0,42342.0,0.57105346]
[1704090302479,0.21408859,42343.0,42342.0,0.62109346]
[1704090302899,0.20937251,42343.0,42342.0,0.62109346]
[1704090303528,0.20937251,42343.0,42342.0,0.64939791]
[1704090303924,0.21408859,42343.0,42342.0,0.64939791]
[1704090305012,0.11408859,42343.0,42342.0,0.53362797]
[1704090305214,0.01408859,42343.0,42342.0,0.53362797]
[1704090305662,0.00937251,42343.0,42342.0,0.53362797]
[1704090308684,0.20937251,42343.0,42342.0,0.53362797]
[1704090309469,0.21396873,42343.0,42342.0,0.53362797]
[1704090311201,0.21396873,42343.0,42342.0,0.66362797]
[1704090311901,0.11396873,42343.0,42342.0,0.66362797]
[1704090312159,0.21396873,42343.0,42342.0,0.66362797]
[1704090312389,0.21396873,42343.0,42342.0,0.75691482]
[1704090312636,0.21396873,42343.0,42342.0,0.66362797]
[1704090318613,0.11396873,42343.0,42342.0,0.66362797]
[1704090319311,0.11396873,42343.0,42342.0,1.34429502]
[1704090319526,0.10937251,42343.0,42342.0,1.34429502]
[1704090320469,0.14424912,42343.0,42342.0,1.34429502]
[1704090321030,0.14883496,42343.0,42342.0,1.34429502]
[1704090321245,0.24883496,42343.0,42342.0,1.34429502]
[1704090321887,0.24424912,42343.0,42342.0,1.34429502]
[1704090322448,0.24883772,42343.0,42342.0,1.34429502]
[1704090322785,0.27722965,42343.0,42342.0,1.34429502]
[1704090323999,0.27722965,42343.0,42342.0,1.34406172]
[1704090326044,0.27722965,42343.0,42342.0,1.21406172]
[1704090326267,0.27264105,42343.0,42342.0,1.21406172]
[1704090326580,0.24235304,42343.0,42342.0,1.21406172]
[1704090326692,0.24235304,42343.0,42342.0,1.19642172]
[1704090327096,0.24235304,42343.0,42342.0,1.33793082]
[1704090327323,0.23776444,42343.0,42342.0,1.19642172]
[1704090327542,0.24235304,42343.0,42342.0,1.28004035]
[1704090327745,0.24235304,42343.0,42342.0,0.5427814]
[1704090327746,0.23776444,42343.0,42342.0,0.5427814]
[1704090327950,0.34236135,42343.0,42342.0,0.32784059]
[1704090328152,0.34236135,42343.0,42342.0,0.32784105]
[1704090328818,0.31396942,42343.0,42342.0,0.32784105]
[1704090329021,0.31396942,42343.0,42342.0,0.019]
[1704090329226,0.31396942,42343.0,42342.0,0.08761988]
[1704090329437,0.31396942,42343.0,42342.0,0.012]
[1704090329644,0.31396942,42343.0,42342.0,0.08492673]
[1704090330090,0.31396942,42343.0,42340.0,0.2362306]
[1704090330091,0.3,42342.0,42341.0,0.38492673]
[1704090330290,0.3,42342.0,42341.0,0.80621752]
[1704090330490,0.30459691,42342.0,42341.0,0.72129079]
[1704090330740,0.31396942,42342.0,42341.0,0.72129079]
[1704090331148,0.31396942,42342.0,42341.0,0.81821652]
[1704090331905,0.31396942,42342.0,42341.0,0.82921652]
[1704090332110,0.31396942,42342.0,42341.0,0.85751771]
[1704090332111,0.21396942,42342.0,42341.0,0.85751771]
[1704090332328,0.11396942,42342.0,42341.0,0.92975771]
[1704090332516,0.10937251,42342.0,42341.0,0.92975771]
[1704090333754,0.21395835,42342.0,42341.0,0.85751771]
[1704090334403,0.21395835,42342.0,42341.0,0.92669771]
[1704090334621,0.20937251,42342.0,42341.0,0.92669771]
[1704090334840,0.10937251,42342.0,42341.0,0.92669771]
[1704090336592,0.20937251,42342.0,42341.0,0.92669771]
[1704090337514,0.10937251,42342.0,42341.0,0.92669771]
[1704090338339,0.20937251,42342.0,42341.0,0.92669771]
[1704090338580,0.10937251,42342.0,42341.0,0.92669771]
[1704090340009,0.20937251,42342.0,42341.0,0.92669771]
[1704090342136,0.10937251,42342.0,42341.0,0.92669771]
[1704090343179,0.1137272,42342.0,42341.0,0.92669771]
[1704090345472,0.0137272,42342.0,42341.0,0.81347079]
[1704090346299,0.00937251,42342.0,42341.0,0.81347079]
[1704090346719,0.00937251,42342.0,42341.0,0.79047079]
[1704090346935,0.00937251,42342.0,42341.0,0.82547079]
[1704090347357,0.00937251,42342.0,42341.0,0.80947079]
[1704090348200,0.00937251,42342.0,42341.0,0.82747079]
[1704090349242,0.10937251,42342.0,42341.0,0.92747079]
[1704090350082,0.10937251,42342.0,42341.0,1.02075764]
[1704090351306,0.10937251,42342.0,42341.0,0.92747079]
[1704090353341,0.10937251,42342.0,42341.0,0.82747079]
[1704090357949,0.10937251,42342.0,42341.0,0.96893802]
[1704090358084,0.21351215,42342.0,42341.0,0.84318612]
[1704090358542,0.21351215,42342.0,42341.0,0.65511244]
[1704090358867,0.21351215,42342.0,42341.0,0.84204547]
[1704090359087,0.21351215,42342.0,42341.0,0.8420407]
[1704090359259,0.21351215,42342.0,42341.0,0.65510767]
[1704090359462,0.21351215,42342.0,42341.0,0.62681098]
[1704090359667,0.21351215,42342.0,42341.0,0.65510767]
[1704090359886,0.21351215,42342.0,42341.0,0.57021711]
[1704090360732,0.21351215,42342.0,42341.0,0.62680894]
[1704090361572,0.38838751,42342.0,42341.0,0.32680894]
[1704090361780,0.58838751,42342.0,42341.0,0.037]
[1704090361994,0.48838751,42342.0,42341.0,0.037]
[1704090362210,0.41351215,42342.0,42341.0,0.037]
[1704090362674,0.00937251,42338.0,42337.0,0.05659183]
[1704090362894,0.00937251,42338.0,42337.0,0.28980894]
[1704090363099,0.01347414,42338.0,42337.0,0.23321711]
[1704090363531,0.01347414,42338.0,42337.0,0.53321711]
[1704090363532,0.31347414,42338.0,42337.0,0.53321711]
[1704090364176,0.31347414,42338.0,42337.0,0.54721711]
[1704090364401,0.3160729,42338.0,42337.0,0.54721711]
[1704090364840,0.3160729,42338.0,42337.0,0.55921711]
[1704090365549,0.44949826,42338.0,42337.0,0.012]
[1704090365763,0.20937251,42335.0,42334.0,0.35659183]
[1704090365979,0.20937251,42335.0,42334.0,0.53321711]
[1704090366188,0.21603663,42335.0,42334.0,0.61810811]
[1704090366883,0.31603663,42335.0,42334.0,0.61810811]
[1704090367096,0.31603663,42335.0,42334.0,0.53321711]
[1704090367307,0.31603663,42335.0,42334.0,0.55121711]
[1704090367963,0.31603663,42335.0,42334.0,0.56821711]
[1704090368395,0.21603663,42335.0,42334.0,0.56821711]
[1704090368620,0.21603663,42335.0,42334.0,0.61513711]
[1704090368825,0.21603663,42335.0,42334.0,0.56821711]
[1704090369704,0.21603663,42335.0,42334.0,0.62095711]
[1704090369918,0.21603663,42335.0,42334.0,0.67752601]
[1704090370376,0.21603663,42335.0,42334.0,0.62095711]
[1704090370593,0.21603663,42335.0,42334.0,0.62478601]
[1704090370806,0.21603663,42335.0,42334.0,0.56821711]
[1704090372220,0.21603663,42335.0,42334.0,0.62478601]
[1704090372646,0.21603663,42335.0,42334.0,0.56821711]
[1704090375910,0.11603663,42335.0,42334.0,0.61387711]
[1704090376120,0.11603663,42335.0,42334.0,0.31387711]
[1704090376327,0.11603663,42335.0,42334.0,0.61387711]
[1704090376764,0.11603663,42335.0,42334.0,0.67044601]
[1704090376984,0.01603663,42335.0,42334.0,0.91250469]
[1704090377405,0.11603663,42335.0,42334.0,0.91250469]
[1704090377819,0.11603663,42335.0,42334.0,1.00579154]
[1704090378293,0.01603663,42335.0,42334.0,1.00579154]
[1704090378510,0.01603663,42335.0,42334.0,1.03407599]
[1704090378938,0.01603663,42335.0,42334.0,1.00568444]
[1704090379146,0.11603663,42335.0,42334.0,0.73242396]
[1704090379591,0.11603663,42335.0,42334.0,0.81717022]
[1704090379805,0.01603663,42335.0,42334.0,0.73242396]
[1704090380028,0.01603663,42335.0,42334.0,1.00539922]
[1704090380243,0.01603663,42335.0,42334.0,0.81717022]
[1704090380244,0.00937251,42335.0,42334.0,0.81717022]
[1704090380454,0.01663289,42335.0,42334.0,0.73242396]
[1704090381149,0.00937251,42335.0,42334.0,0.81717022]
[1704090381362,0.01663289,42335.0,42334.0,0.72388337]
[1704090381573,0.01663289,42335.0,42334.0,0.63913711]
[1704090381782,0.01663289,42335.0,42334.0,0.72388337]
[1704090382440,0.21663289,42335.0,42334.0,0.63913711]
[1704090382649,0.21663289,42335.0,42334.0,0.6956358]
[1704090382861,0.21663289,42335.0,42334.0,0.6780558]
[1704090384817,0.21663289,42335.0,42334.0,0.62155711]
[1704090385022,0.21663289,42335.0,42334.0,0.6780558]
[1704090385444,0.21663289,42335.0,42334.0,0.62155711]
[1704090386694,0.21663289,42335.0,42334.0,0.6780558]
[1704090387127,0.21663289,42335.0,42334.0,0.62155711]
[1704090387365,0.21663289,42335.0,42334.0,0.71484396]
[1704090388762,0.21663289,42335.0,42334.0,0.77134265]
[1704090388963,0.21663289,42335.0,42334.0,0.6780558]
[1704090389360,0.21663289,42335.0,42334.0,0.62155711]
[1704090389738,0.21663289,42335.0,42334.0,0.71484396]
[1704090390328,0.21663289,42335.0,42334.0,0.77134242]
[1704090391847,0.21663289,42335.0,42334.0,0.71484396]
[1704090391848,0.11663289,42335.0,42334.0,0.71484396]
[1704090392177,0.11663289,42335.0,42334.0,0.77134551]
[1704090392369,0.21663289,42335.0,42334.0,0.77134551]
[1704090393864,0.11663289,42335.0,42334.0,0.77134551]
[1704090394082,0.11663289,42335.0,42334.0,0.92635704]
[1704090394083,0.21663289,42335.0,42334.0,0.92635704]
[1704090394290,0.11663289,42335.0,42334.0,0.92635704]
[1704090394501,0.11663289,42335.0,42334.0,1.01112213]
[1704090395780,0.00726038,42335.0,42334.0,1.09501704]
[1704090396037,0.00726038,42335.0,42334.0,1.38835125]
[1704090396262,0.10937251,42342.0,42334.0,1.49116285]
[1704090396505,0.00937251,42342.0,42341.0,0.11297809]
[1704090396760,0.00937251,42342.0,42341.0,0.73948205]
[1704090396998,0.01607134,42342.0,42341.0,1.12763513]
[1704090397208,0.10937251,42342.0,42341.0,0.92137019]
[1704090397426,0.10937251,42342.0,42341.0,1.03434828]
[1704090397635,0.11672234,42342.0,42341.0,1.03434828]
[1704090398067,0.11672234,42342.0,42341.0,1.05334828]
[1704090398485,0.10937251,42342.0,42341.0,1.05334828]
[1704090398711,0.11640615,42342.0,42341.0,1.05334828]
[1704090399152,0.11640615,42342.0,42341.0,0.97214828]
[1704090400021,0.11640615,42342.0,42341.0,0.94316828]
[1704090402348,0.11554183,42342.0,42341.0,0.94316828]
[1704090405145,0.11554183,42342.0,42341.0,0.83019019]
[1704090406154,0.11554183,42342.0,42341.0,0.67755903]
[1704090406155,0.21554183,42342.0,42341.0,0.67755903]
[1704090406591,0.21554183,42342.0,42341.0,0.62107711]
[1704090406788,0.20850819,42342.0,42341.0,0.57121711]
[1704090406921,0.20850819,42342.0,42341.0,0.67941903]
[1704090407121,0.21555156,42342.0,42341.0,0.67941903]
[1704090408096,0.21555156,42342.0,42341.0,0.62769903]
[1704090408318,0.21555156,42342.0,42341.0,0.67455903]
[1704090409559,0.21555156,42342.0,42341.0,0.61807711]
[1704090409792,0.21555156,42342.0,42341.0,0.70280001]
[1704090410061,0.21555156,42342.0,42341.0,0.64702695]
[1704090410265,0.21555156,42342.0,42341.0,0.6566797]
[1704090410507,0.21555156,42342.0,42341.0,0.7067197]
[1704090411439,0.21555156,42342.0,42341.0,0.6566797]
[1704090411846,0.21555156,42342.0,42341.0,0.7064197]
[1704090412083,0.21555156,42342.0,42341.0,0.6566797]
[1704090412700,0.21555156,42342.0,42341.0,0.7075597]
[1704090416536,0.21555156,42342.0,42341.0,0.6566797]
[1704090417306,0.21555156,42342.0,42341.0,0.7032997]
[1704090417509,0.21555156,42342.0,42341.0,0.6566797]
[1704090418063,0.21555156,42342.0,42341.0,0.7023397]
[1704090421904,0.21555156,42342.0,42341.0,0.64582695]
[1704090422918,0.21555156,42342.0,42341.0,0.66664695]
[1704090423477,0.21555156,42342.0,42341.0,0.75136985]
[1704090423920,0.11555156,42342.0,42341.0,0.75136985]
[1704090424768,0.21555156,42342.0,42341.0,0.75136985]
[1704090424974,0.21555156,42342.0,42341.0,0.8446567]
[1704090425990,0.21555156,42342.0,42341.0,0.75136985]
[1704090426844,0.21555156,42342.0,42341.0,0.9370065]
[1704090427300,0.11555156,42342.0,42341.0,0.75136985]
[1704090427533,0.21555156,42342.0,42341.0,0.93682008]
[1704090429390,0.21555156,42342.0,42341.0,0.93692167]
[1704090429860,0.11555156,42342.0,42341.0,1.03020852]
[1704090430345,0.10850819,42342.0,42341.0,1.03020852]
[1704090430588,0.11443865,42342.0,42341.0,1.03020852]
[1704090430841,0.21443865,42342.0,42341.0,1.03020852]
[1704090431319,0.21443865,42342.0,42341.0,0.94538403]
[1704090432208,0.21443865,42342.0,42341.0,1.05836212]
[1704090432419,0.21443865,42342.0,42341.0,0.96507527]
[1704090436512,0.21443865,42342.0,42341.0,0.85209718]
[1704090437220,0.21443865,42342.0,42341.0,0.9933198]
[1704090438633,0.20850819,42342.0,42341.0,0.9933198]
[1704090439146,0.21441172,42342.0,42341.0,0.9933198]
[1704090439345,0.21441172,42342.0,42341.0,0.85209718]
[1704090445679,0.20850819,42342.0,42341.0,0.85209718]
[1704090448692,0.2,42345.0,42341.0,0.85209718]
[1704090448909,0.00850819,42343.0,42342.0,0.41691945]
[1704090449119,0.00850819,42343.0,42342.0,0.60303945]
[1704090450043,0.1,42345.0,42342.0,0.60303945]
[1704090450259,0.1,42345.0,42343.0,0.18370234]
[1704090450475,0.2,42345.0,42344.0,0.41691945]
[1704090450687,0.20850819,42345.0,42344.0,0.50631945]
[1704090452136,0.20850819,42345.0,42344.0,0.54431945]
[1704090452335,0.20350819,42345.0,42344.0,0.54431945]
[1704090452542,0.20350819,42345.0,42344.0,0.51719945]
[1704090455783,0.195,42345.0,42344.0,0.51719945]
[1704090456004,0.20350819,42345.0,42344.0,0.51719945]
[1704090456432,0.20350819,42345.0,42344.0,0.658682]
[1704090457280,0.20942823,42345.0,42344.0,0.658682]
[1704090457519,0.20350819,42345.0,42344.0,0.658682]
[1704090460883,0.20978346,42345.0,42344.0,0.75196885]
[1704090461358,0.00627527,42345.0,42344.0,0.75196885]
[1704090461572,0.00627527,42345.0,42344.0,1.2289263]
[1704090461782,0.00850819,42350.0,42345.0,0.005]
[1704090461998,0.00850819,42350.0,42348.0,0.23321711]
[1704090462224,0.00850819,42351.0,42349.0,0.57698919]
[1704090462436,0.00850819,42351.0,42350.0,0.41691945]
[1704090462863,0.00850819,42351.0,42350.0,0.60243945]
[1704090463497,0.00850819,42351.0,42350.0,0.74370438]
[1704090463950,0.20350819,42351.0,42350.0,0.74370438]
[1704090464162,0.01436536,42351.0,42350.0,0.65094438]
[1704090464374,0.19183171,42351.0,42350.0,0.65094438]
[1704090464594,0.09183171,42352.0,42350.0,0.64167143]
[1704090464805,0.19183171,42353.0,42351.0,0.29465081]
[1704090465015,0.19183171,42352.0,42351.0,0.36755081]
[1704090465247,0.19835861,42352.0,42351.0,0.18166095]
[1704090465477,0.19396661,42352.0,42351.0,0.15438908]
[1704090465687,0.19396661,42352.0,42351.0,0.33605003]
[1704090465909,0.19396661,42352.0,42351.0,0.35205003]
[1704090466124,0.09835861,42352.0,42351.0,0.35205003]
[1704090466350,0.09835861,42352.0,42351.0,0.37005003]
[1704090466775,0.09835861,42352.0,42351.0,0.35205003]
[1704090466994,0.09835861,42352.0,42351.0,0.35405003]
[1704090467436,0.09835861,42352.0,42351.0,0.18838908]
[1704090469033,0.0065269,42352.0,42351.0,0.37009909]
[1704090469433,0.09835861,42352.0,42351.0,0.37009909]
[1704090469825,0.19396661,42352.0,42351.0,0.37009909]
[1704090470033,0.0065269,42352.0,42351.0,0.37009909]
[1704090470231,0.0065269,42352.0,42351.0,0.6033162]
[1704090470442,0.1915,42355.0,42351.0,0.6033162]
[1704090470647,0.1915,42355.0,42352.0,0.28967796]
[1704090470846,0.0065468,42354.0,42352.0,0.36215796]
[1704090471055,0.28333171,42355.0,42353.0,0.06708]
[1704090471258,0.1915,42355.0,42354.0,0.23321711]
[1704090471664,0.18743971,42355.0,42354.0,0.29873711]
[1704090471872,0.1939883,42355.0,42354.0,0.29873711]
[1704090473129,0.1939883,42355.0,42354.0,0.31073711]
[1704090473541,0.1939883,42355.0,42354.0,0.32173711]
[1704090475893,0.1939883,42355.0,42354.0,0.30631711]
[1704090476920,0.1939883,42355.0,42354.0,0.25621711]
[1704090492011,0.2939883,42355.0,42354.0,0.25621711]
[1704090496209,0.2939883,42355.0,42354.0,0.023]
[1704090498167,0.2889883,42355.0,42354.0,0.023]
[1704090498307,0.29398681,42355.0,42354.0,0.023]
[1704090502599,0.19398681,42355.0,42354.0,0.25621711]
[1704090502802,0.19398681,42355.0,42354.0,0.31267796]
[1704090503040,0.19398681,42355.0,42354.0,0.36187796]
[1704090503243,0.18743971,42355.0,42354.0,0.36187796]
[1704090503449,0.18743971,42355.0,42354.0,0.25621711]
[1704090503654,0.19378727,42355.0,42354.0,0.31267796]
[1704090504455,0.29378727,42355.0,42354.0,0.31267796]
[1704090505244,0.29378727,42355.0,42354.0,0.25621711]
[1704090507335,0.29378727,42355.0,42354.0,0.31267796]
[1704090507556,0.29378727,42355.0,42354.0,0.25621711]
[1704090507997,0.29378727,42355.0,42354.0,0.31267796]
[1704090508487,0.29378727,42355.0,42354.0,0.39740704]
[1704090508724,0.29378727,42355.0,42354.0,0.34094619]
[1704090509505,0.29378727,42355.0,42354.0,0.25621711]
[1704090509897,0.29378727,42355.0,42354.0,0.31282463]
[1704090512993,0.29378727,42355.0,42354.0,0.07960752]
[1704090513199,0.29378727,42355.0,42354.0,0.023]
[1704090534062,0.29378727,42355.0,42354.0,0.011]
[1704090534273,0.28743971,42351.0,42350.0,0.05662466]
[1704090534482,0.28743971,42351.0,42350.0,0.28984177]
[1704090534720,0.294315,42351.0,42350.0,0.28984177]
[1704090535346,0.294315,42351.0,42350.0,0.30884177]
[1704090535995,0.294315,42351.0,42350.0,0.27021711]
[1704090536435,0.294315,42351.0,42350.0,0.32684177]
[1704090536849,0.294315,42351.0,42350.0,0.27021711]
[1704090537265,0.294315,42351.0,42350.0,0.25221711]
[1704090537493,0.294315,42351.0,42350.0,0.32784177]
[1704090537857,0.294315,42351.0,42350.0,0.30884177]
[1704090538256,0.294315,42351.0,42350.0,0.32684177]
[1704090544343,0.294315,42351.0,42350.0,0.27021711]
[1704090544558,0.294315,42351.0,42350.0,0.32684177]
[1704090544689,0.294315,42351.0,42350.0,0.27021711]
[1704090545819,0.294315,42351.0,42350.0,0.32684177]
[1704090546294,0.294315,42351.0,42350.0,0.27021711]
[1704090546487,0.294315,42351.0,42350.0,0.32684177]
[1704090546894,0.294315,42351.0,42350.0,0.27021711]
[1704090547108,0.294315,42351.0,42350.0,0.32684177]
[1704090547772,0.294315,42351.0,42350.0,0.27021711]
[1704090549249,0.294315,42351.0,42350.0,0.32684177]
[1704090551942,0.294315,42351.0,42350.0,0.37574177]
[1704090555391,0.294315,42351.0,42350.0,0.31911711]
[1704090556040,0.00687529,42351.0,42350.0,0.64628408]
[1704090556286,0.194315,42351.0,42350.0,0.68018408]
[1704090556520,0.18743971,42351.0,42350.0,0.68018408]
[1704090557155,0.18743971,42351.0,42350.0,0.64318408]
[1704090557363,0.18743971,42351.0,42350.0,0.50162242]
[1704090557588,0.18743971,42351.0,42350.0,0.68119738]
[1704090557810,0.18743971,42351.0,42350.0,0.66219738]
[1704090558022,0.18743971,42351.0,42350.0,0.53862242]
[1704090558442,0.18743971,42351.0,42350.0,0.66219738]
[1704090558884,0.18743971,42351.0,42350.0,0.53862242]
[1704090559105,0.18743971,42351.0,42350.0,0.63289824]
[1704090559322,0.18743971,42351.0,42350.0,0.65189824]
[1704090559742,0.19394021,42351.0,42350.0,0.65189824]
[1704090559957,0.19394021,42351.0,42350.0,0.63289824]
[1704090560168,0.19394021,42351.0,42350.0,0.65189824]
[1704090560388,0.19394021,42351.0,42350.0,0.63389824]
[1704090560811,0.19394021,42351.0,42350.0,0.65289824]
[1704090561033,0.19394021,42351.0,42350.0,0.52062242]
[1704090561267,0.19394021,42351.0,42350.0,0.65289785]
[1704090563888,0.19394021,42351.0,42350.0,0.68119738]
[1704090564536,0.19394021,42351.0,42350.0,0.53962242]
[1704090564752,0.19394021,42351.0,42350.0,0.65289724]
[1704090565629,0.19394021,42351.0,42350.0,0.53962242]
[1704090565844,0.19394021,42351.0,42350.0,0.65289541]
[1704090566060,0.19394021,42351.0,42350.0,0.68119738]
[1704090566488,0.19394021,42351.0,42350.0,0.65289293]
[1704090567562,0.18894021,42351.0,42350.0,0.65289293]
[1704090567770,0.18894021,42351.0,42350.0,0.53962242]
[1704090568006,0.18894021,42351.0,42350.0,0.68119738]
[1704090568445,0.18894021,42351.0,42350.0,0.53962242]
[1704090568653,0.18894021,42351.0,42350.0,0.65288605]
[1704090568866,0.18894021,42351.0,42350.0,0.62457688]
[1704090569096,0.18243971,42351.0,42350.0,0.51946242]
[1704090570032,0.18243971,42351.0,42350.0,0.60441945]
[1704090570685,0.18243971,42351.0,42350.0,0.63272605]
[1704090571102,0.18243971,42351.0,42350.0,0.61372605]
[1704090571368,0.18243971,42351.0,42350.0,0.63272605]
[1704090571579,0.18243971,42351.0,42350.0,0.61372605]
[1704090571788,0.18243971,42351.0,42350.0,0.59472605]
[1704090572202,0.18947545,42351.0,42350.0,0.61372605]
[1704090572650,0.18947545,42351.0,42350.0,0.59472605]
[1704090572885,0.18947545,42351.0,42350.0,0.61372605]
[1704090573140,0.18947545,42351.0,42350.0,0.63272605]
[1704090574987,0.18947545,42351.0,42350.0,0.63272375]
[1704090576313,0.18947545,42351.0,42350.0,0.51946242]
[1704090576724,0.18947545,42351.0,42350.0,0.63271837]
[1704090577764,0.18947545,42351.0,42350.0,0.66103738]
[1704090578769,0.18947545,42351.0,42350.0,0.51946242]
[1704090579558,0.18947545,42351.0,42350.0,0.63271756]
[1704090579761,0.18947545,42351.0,42350.0,0.51946242]
[1704090579897,0.18947545,42351.0,42350.0,0.63271573]
[1704090581135,0.18947545,42351.0,42350.0,0.61371573]
[1704090581681,0.18947545,42351.0,42350.0,0.63271573]
[1704090582760,0.18947545,42351.0,42350.0,0.61371573]
[1704090582972,0.18947545,42351.0,42350.0,0.63271573]
[1704090584720,0.18947545,42351.0,42350.0,0.66103738]
[1704090586216,0.18947545,42351.0,42350.0,0.51946242]
[1704090586631,0.28947545,42351.0,42350.0,0.66103738]
[1704090586841,0.28947545,42351.0,42350.0,0.45682242]
[1704090587698,0.28947545,42351.0,42350.0,0.50308242]
[1704090587904,0.28947545,42351.0,42350.0,0.45682242]
[1704090588576,0.28947545,42351.0,42350.0,0.50296242]
[1704090590474,0.28947545,42351.0,42350.0,0.6162197]
[1704090590711,0.28947545,42351.0,42350.0,0.50296242]
[1704090591459,0.28947545,42351.0,42350.0,0.45682242]
[1704090591704,0.28947545,42351.0,42350.0,0.5700797]
[1704090592197,0.28947545,42351.0,42350.0,0.5417541]
[1704090592877,0.28947545,42351.0,42350.0,0.35614879]
[1704090594148,0.28947545,42351.0,42350.0,0.54113492]
[1704090595240,0.28947545,42351.0,42350.0,0.54115593]
[1704090595829,0.28947545,42351.0,42350.0,0.5411572]
[1704090599529,0.28947545,42351.0,42350.0,0.35617107]
[1704090600287,0.28947545,42351.0,42350.0,0.33717107]
[1704090600508,0.28947545,42351.0,42350.0,0.35617107]
[1704090600940,0.28947545,42351.0,42350.0,0.33717107]
[1704090601163,0.28947545,42351.0,42350.0,0.31817107]
[1704090601622,0.28947545,42351.0,42350.0,0.33517107]
[1704090602076,0.38947545,42351.0,42350.0,0.017]
[1704090602288,0.48947545,42351.0,42350.0,0.017]
[1704090602718,0.48947545,42351.0,42350.0,0.032]
[1704090603162,0.48947545,42351.0,42350.0,0.017]
[1704090603376,0.48947545,42351.0,42350.0,0.021]
[1704090603804,0.48947545,42351.0,42350.0,0.017]
[1704090604283,0.090608,42345.0,42343.0,0.3566495]
[1704090604498,0.090608,42345.0,42344.0,0.23321711]
[1704090604923,0.28243971,42345.0,42344.0,0.23321711]
[1704090605142,0.28243971,42344.0,42343.0,0.0566495]
[1704090605409,0.28243971,42343.0,42342.0,0.0566495]
[1704090605628,0.1,42345.0,42341.0,0.0566495]
[1704090605629,0.28243971,42342.0,42341.0,0.0566495]
[1704090605846,0.28243971,42341.0,42340.0,0.0566495]
[1704090606079,0.28243971,42341.0,42339.0,0.0566495]
[1704090606295,0.18243971,42339.0,42338.0,0.0566495]